[Event "Titled Tuesday Blitz April 4 Late 2023"]
[White "Paravyan, David"]
[Black "Kleiman, Jake"]
[WhiteFideId "4194985"]
[BlackFideId "2020041"]
[WhiteElo "2563"]
[BlackElo "2623"]
[Result "1-0"]
[Round "04"]
[TimeControl "180+2"]
[Date "2023.04.04"]
[WhiteClock "0:00:05"]
[BlackClock "0:00:12"]

1. c4 {[%clk 0:03:00]}  Nf6 {[%clk 0:02:56]} 2. Nf3 {[%clk 0:02:59]}  e6 {[%clk 0:02:56]} 3. g3 {[%clk 0:02:58]}  d5 {[%clk 0:02:56]} 4. Bg2 {[%clk 0:02:59]}  dxc4 {[%clk 0:02:56]} 5. Qa4+ {[%clk 0:02:58]}  c6 {[%clk 0:02:56]} 6. Qxc4 {[%clk 0:02:58]}  b5 {[%clk 0:02:57]} 7. Qc2 {[%clk 0:02:58]}  Bb7 {[%clk 0:02:57]} 8. O-O {[%clk 0:02:55]}  Nbd7 {[%clk 0:02:56]} 9. a4 {[%clk 0:02:54]}  a6 {[%clk 0:02:57]} 10. d4 {[%clk 0:02:54]}  Rc8 {[%clk 0:02:55]} 11. Ne5 {[%clk 0:02:34]}  Qb6 {[%clk 0:02:50]} 12. Nxd7 {[%clk 0:02:22]}  Nxd7 {[%clk 0:02:49]} 13. Be3 {[%clk 0:02:02]}  Be7 {[%clk 0:02:42]} 14. d5 {[%clk 0:01:52]}  c5 {[%clk 0:02:37]} 15. axb5 {[%clk 0:01:45]}  axb5 {[%clk 0:02:37]} 16. Nc3 {[%clk 0:01:37]}  exd5 {[%clk 0:01:44]} 17. Nxd5 {[%clk 0:01:28]}  Bxd5 {[%clk 0:01:44]} 18. Bxd5 {[%clk 0:01:29]}  O-O {[%clk 0:01:44]} 19. Rfd1 {[%clk 0:01:28]}  Nf6 {[%clk 0:01:41]} 20. Bf3 {[%clk 0:01:25]}  Qe6 {[%clk 0:01:34]} 21. Kg2 {[%clk 0:01:22]}  h6 {[%clk 0:01:29]} 22. Ra7 {[%clk 0:01:19]}  Rfd8 {[%clk 0:01:24]} 23. Rxd8+ {[%clk 0:01:16]}  Bxd8 {[%clk 0:01:23]} 24. Rb7 {[%clk 0:01:09]}  Nd5 {[%clk 0:00:51]} 25. Qe4 {[%clk 0:00:31]}  Nxe3+ {[%clk 0:00:47]} 26. fxe3 {[%clk 0:00:32]}  Qxe4 {[%clk 0:00:44]} 27. Bxe4 {[%clk 0:00:33]}  b4 {[%clk 0:00:45]} 28. Bd5 {[%clk 0:00:32]}  Rc7 {[%clk 0:00:38]} 29. Rb8 {[%clk 0:00:26]}  Rd7 {[%clk 0:00:38]} 30. e4 {[%clk 0:00:27]}  g6 {[%clk 0:00:34]} 31. Rc8 {[%clk 0:00:25]}  Kg7 {[%clk 0:00:31]} 32. Rxc5 {[%clk 0:00:25]}  Bf6 {[%clk 0:00:31]} 33. b3 {[%clk 0:00:24]}  Re7 {[%clk 0:00:30]} 34. Kf3 {[%clk 0:00:24]}  Bc3 {[%clk 0:00:30]} 35. h4 {[%clk 0:00:23]}  h5 {[%clk 0:00:31]} 36. Rb5 {[%clk 0:00:19]}  Rc7 {[%clk 0:00:30]} 37. Bc4 {[%clk 0:00:17]}  Re7 {[%clk 0:00:29]} 38. Bd5 {[%clk 0:00:14]}  Kf6 {[%clk 0:00:29]} 39. g4 {[%clk 0:00:11]}  hxg4+ {[%clk 0:00:29]} 40. Kxg4 {[%clk 0:00:12]}  Kg7 {[%clk 0:00:28]} 41. h5 {[%clk 0:00:11]}  gxh5+ {[%clk 0:00:26]} 42. Kxh5 {[%clk 0:00:12]}  Kf6 {[%clk 0:00:25]} 43. Kg4 {[%clk 0:00:12]}  Kg7 {[%clk 0:00:24]} 44. Kf4 {[%clk 0:00:11]}  Kf6 {[%clk 0:00:24]} 45. Rb6+ {[%clk 0:00:07]}  Kg7 {[%clk 0:00:24]} 46. Ra6 {[%clk 0:00:08]}  Bd2+ {[%clk 0:00:23]} 47. Kf5 {[%clk 0:00:06]}  Bc3 {[%clk 0:00:24]} 48. Kg4 {[%clk 0:00:05]}  Bd4 {[%clk 0:00:22]} 49. Ra2 {[%clk 0:00:03]}  Bc3 {[%clk 0:00:22]} 50. Kf5 {[%clk 0:00:02]}  Re5+ {[%clk 0:00:21]} 51. Kf4 {[%clk 0:00:03]}  Re7 {[%clk 0:00:22]} 52. e3 {[%clk 0:00:03]}  Be5+ {[%clk 0:00:22]} 53. Kf5 {[%clk 0:00:03]}  Bc3 {[%clk 0:00:23]} 54. Rg2+ {[%clk 0:00:03]}  Kf8 {[%clk 0:00:23]} 55. Kf4 {[%clk 0:00:03]}  Rc7 {[%clk 0:00:21]} 56. Kf3 {[%clk 0:00:03]}  Re7 {[%clk 0:00:21]} 57. Rh2 {[%clk 0:00:03]}  Be5 {[%clk 0:00:21]} 58. Rh6 {[%clk 0:00:02]}  Bc3 {[%clk 0:00:21]} 59. Rh5 {[%clk 0:00:03]}  Kg7 {[%clk 0:00:21]} 60. Ke2 {[%clk 0:00:03]}  Rc7 {[%clk 0:00:21]} 61. Kd3 {[%clk 0:00:03]}  Re7 {[%clk 0:00:21]} 62. Bc4 {[%clk 0:00:04]}  Rd7+ {[%clk 0:00:21]} 63. Bd5 {[%clk 0:00:04]}  Rc7 {[%clk 0:00:21]} 64. e5 {[%clk 0:00:05]}  Re7 {[%clk 0:00:21]} 65. Rg5+ {[%clk 0:00:02]}  Kh6 {[%clk 0:00:21]} 66. Rf5 {[%clk 0:00:02]}  Kg6 {[%clk 0:00:21]} 67. Rf6+ {[%clk 0:00:02]}  Kg7 {[%clk 0:00:21]} 68. Rb6 {[%clk 0:00:01]}  Rxe5 {[%clk 0:00:21]} 69. e4 {[%clk 0:00:02]}  Re7 {[%clk 0:00:21]} 70. Kc4 {[%clk 0:00:03]}  Rc7+ {[%clk 0:00:20]} 71. Kb5 {[%clk 0:00:03]}  Kf8 {[%clk 0:00:20]} 72. Rh6 {[%clk 0:00:03]}  Ke7 {[%clk 0:00:20]} 73. Rh7 {[%clk 0:00:02]}  Kf6 {[%clk 0:00:20]} 74. Rh3 {[%clk 0:00:02]}  Ke5 {[%clk 0:00:20]} 75. Rf3 {[%clk 0:00:03]}  f6 {[%clk 0:00:18]} 76. Rf5+ {[%clk 0:00:03]}  Kd6 {[%clk 0:00:17]} 77. Bc4 {[%clk 0:00:04]}  Rb7+ {[%clk 0:00:16]} 78. Ka6 {[%clk 0:00:04]}  Rc7 {[%clk 0:00:17]} 79. Kb6 {[%clk 0:00:02]}  Rc6+ {[%clk 0:00:16]} 80. Kb5 {[%clk 0:00:02]}  Rc7 {[%clk 0:00:16]} 81. Rd5+ {[%clk 0:00:03]}  Ke7 {[%clk 0:00:17]} 82. Kb6 {[%clk 0:00:03]}  Rc8 {[%clk 0:00:17]} 83. Kb7 {[%clk 0:00:04]}  Rd8 {[%clk 0:00:14]} 84. Rh5 {[%clk 0:00:04]}  Rd4 {[%clk 0:00:13]} 85. Bd5 {[%clk 0:00:03]}  Kd6 {[%clk 0:00:13]} 86. Rf5 {[%clk 0:00:02]}  Rd2 {[%clk 0:00:12]} 87. Bc4 {[%clk 0:00:03]}  Rb2 {[%clk 0:00:12]} 88. Kb6 {[%clk 0:00:03]}  Rd2 {[%clk 0:00:11]} 89. Kb5 {[%clk 0:00:03]}  Ke7 {[%clk 0:00:11]} 90. Rh5 {[%clk 0:00:03]}  Rd4 {[%clk 0:00:12]} 91. Rh7+ {[%clk 0:00:03]}  Kd6 {[%clk 0:00:12]} 92. Bd5 {[%clk 0:00:03]}  Rd2 {[%clk 0:00:12]} 93. Rf7 {[%clk 0:00:03]}  Re2 {[%clk 0:00:12]} 94. Rf8 {[%clk 0:00:02]}  Rd2 {[%clk 0:00:12]} 95. Rd8+ {[%clk 0:00:02]}  Ke7 {[%clk 0:00:13]} 96. Rg8 {[%clk 0:00:02]}  Kd7 {[%clk 0:00:13]} 97. Rg7+ {[%clk 0:00:02]}  Kd6 {[%clk 0:00:13]} 98. Rf7 {[%clk 0:00:03]}  Re2 {[%clk 0:00:13]} 99. Rf8 {[%clk 0:00:03]}  Rd2 {[%clk 0:00:13]} 100. Re8 {[%clk 0:00:04]}  Kd7 {[%clk 0:00:14]} 101. Re6 {[%clk 0:00:04]}  Kc7 {[%clk 0:00:14]} 102. Kc4 {[%clk 0:00:03]}  Rd4+ {[%clk 0:00:14]} 103. Kc5 {[%clk 0:00:04]}  Rd2 {[%clk 0:00:15]} 104. Re7+ {[%clk 0:00:04]}  Kb8 {[%clk 0:00:14]} 105. Kc6 {[%clk 0:00:02]}  Be5 {[%clk 0:00:13]} 106. Re8+ {[%clk 0:00:02]}  Ka7 {[%clk 0:00:13]} 107. Kb5 {[%clk 0:00:03]}  Bb8 {[%clk 0:00:10]} 108. Re7+ {[%clk 0:00:03]}  Bc7 {[%clk 0:00:10]} 109. Rxc7+ {[%clk 0:00:04]}  Kb8 {[%clk 0:00:11]} 110. Rf7 {[%clk 0:00:05]}  Kc8 {[%clk 0:00:12]} 111. Kxb4 {[%clk 0:00:05]} 1-0


[Site "https://www.chess.com"]

[Event "Titled Tuesday Blitz April 4 Late 2023"]
[White "Ehlvest, Jaan"]
[Black "Bluebaum, Matthias"]
[WhiteFideId "4500016"]
[BlackFideId "24651516"]
[WhiteElo "2442"]
[BlackElo "2638"]
[Result "0-1"]
[Round "04"]
[TimeControl "180+2"]
[Date "2023.04.04"]
[WhiteClock "0:00:01"]
[BlackClock "0:00:05"]

1. e4 {[%clk 0:02:53]}  e6 {[%clk 0:03:00]} 2. d4 {[%clk 0:02:50]}  d5 {[%clk 0:03:01]} 3. exd5 {[%clk 0:02:51]}  exd5 {[%clk 0:03:02]} 4. Nf3 {[%clk 0:02:50]}  Nc6 {[%clk 0:03:02]} 5. Bd3 {[%clk 0:02:49]}  Nb4 {[%clk 0:03:03]} 6. Bb5+ {[%clk 0:02:46]}  c6 {[%clk 0:03:03]} 7. Ba4 {[%clk 0:02:45]}  Bd6 {[%clk 0:03:01]} 8. O-O {[%clk 0:02:43]}  Ne7 {[%clk 0:03:02]} 9. c3 {[%clk 0:02:39]}  Na6 {[%clk 0:03:02]} 10. Bc2 {[%clk 0:02:38]}  O-O {[%clk 0:03:03]} 11. Re1 {[%clk 0:02:37]}  Nc7 {[%clk 0:03:03]} 12. Bg5 {[%clk 0:02:31]}  f6 {[%clk 0:03:03]} 13. Bh4 {[%clk 0:02:31]}  Bf5 {[%clk 0:03:03]} 14. Nbd2 {[%clk 0:02:24]}  Qd7 {[%clk 0:03:02]} 15. Bg3 {[%clk 0:02:22]}  Bxc2 {[%clk 0:02:53]} 16. Qxc2 {[%clk 0:02:21]}  Nf5 {[%clk 0:02:53]} 17. Re2 {[%clk 0:02:14]}  Nxg3 {[%clk 0:02:51]} 18. hxg3 {[%clk 0:02:13]}  Rae8 {[%clk 0:02:48]} 19. Rae1 {[%clk 0:02:13]}  g6 {[%clk 0:02:49]} 20. a4 {[%clk 0:02:05]}  Kg7 {[%clk 0:02:47]} 21. Nf1 {[%clk 0:02:00]}  Rxe2 {[%clk 0:02:43]} 22. Rxe2 {[%clk 0:02:00]}  Re8 {[%clk 0:02:43]} 23. Rxe8 {[%clk 0:01:53]}  Qxe8 {[%clk 0:02:44]} 24. Qd1 {[%clk 0:01:46]}  Qe4 {[%clk 0:02:40]} 25. Ne1 {[%clk 0:01:29]}  h5 {[%clk 0:02:34]} 26. Nd2 {[%clk 0:01:26]}  Qe8 {[%clk 0:02:28]} 27. Nd3 {[%clk 0:01:23]}  g5 {[%clk 0:02:25]} 28. c4 {[%clk 0:01:15]}  Qg6 {[%clk 0:02:21]} 29. Qe2 {[%clk 0:01:10]}  h4 {[%clk 0:02:16]} 30. c5 {[%clk 0:01:07]}  Bf8 {[%clk 0:02:13]} 31. gxh4 {[%clk 0:01:06]}  gxh4 {[%clk 0:02:14]} 32. Nf4 {[%clk 0:01:02]}  Qf5 {[%clk 0:02:11]} 33. Nh3 {[%clk 0:00:54]}  Ne6 {[%clk 0:01:56]} 34. Qe3 {[%clk 0:00:38]}  Kh7 {[%clk 0:01:45]} 35. Nf3 {[%clk 0:00:31]}  Bh6 {[%clk 0:01:45]} 36. Qb3 {[%clk 0:00:30]}  Nd8 {[%clk 0:01:24]} 37. Nxh4 {[%clk 0:00:28]}  Qe4 {[%clk 0:01:16]} 38. Qg3 {[%clk 0:00:27]}  Ne6 {[%clk 0:01:11]} 39. Nf3 {[%clk 0:00:26]}  Nxd4 {[%clk 0:00:43]} 40. Qc7+ {[%clk 0:00:25]}  Kg6 {[%clk 0:00:43]} 41. Nxd4 {[%clk 0:00:24]}  Qxd4 {[%clk 0:00:44]} 42. Qxb7 {[%clk 0:00:23]}  Qxc5 {[%clk 0:00:45]} 43. b4 {[%clk 0:00:22]}  Qc1+ {[%clk 0:00:26]} 44. Kh2 {[%clk 0:00:21]}  d4 {[%clk 0:00:26]} 45. b5 {[%clk 0:00:18]}  cxb5 {[%clk 0:00:22]} 46. axb5 {[%clk 0:00:18]}  Qc5 {[%clk 0:00:20]} 47. Qe4+ {[%clk 0:00:14]}  Kg7 {[%clk 0:00:20]} 48. f4 {[%clk 0:00:11]}  Kf8 {[%clk 0:00:10]} 49. Nf2 {[%clk 0:00:10]}  f5 {[%clk 0:00:07]} 50. Qa8+ {[%clk 0:00:07]}  Kg7 {[%clk 0:00:08]} 51. Nd3 {[%clk 0:00:07]}  Qc7 {[%clk 0:00:04]} 52. Qc6 {[%clk 0:00:06]}  Bxf4+ {[%clk 0:00:04]} 53. Kh3 {[%clk 0:00:05]}  Qxc6 {[%clk 0:00:05]} 54. bxc6 {[%clk 0:00:04]}  Bc7 {[%clk 0:00:06]} 55. g4 {[%clk 0:00:04]}  Kf6 {[%clk 0:00:04]} 56. Kh4 {[%clk 0:00:01]}  fxg4 {[%clk 0:00:05]} 0-1


[Site "https://www.chess.com"]

[Event "Titled Tuesday Blitz April 4 Late 2023"]
[White "Wadsworth, Matthew J"]
[Black "Kramnik, Vladimir"]
[WhiteFideId "415804"]
[BlackFideId "4101588"]
[WhiteElo "2330"]
[BlackElo "2712"]
[Result "0-1"]
[Round "04"]
[TimeControl "180+2"]
[Date "2023.04.04"]
[WhiteClock "0:00:06"]
[BlackClock "0:00:57"]

1. c4 {[%clk 0:02:59]}  c5 {[%clk 0:02:58]} 2. Nf3 {[%clk 0:02:58]}  Nf6 {[%clk 0:02:58]} 3. Nc3 {[%clk 0:02:58]}  e6 {[%clk 0:02:57]} 4. g3 {[%clk 0:02:52]}  b6 {[%clk 0:02:57]} 5. Bg2 {[%clk 0:02:52]}  Bb7 {[%clk 0:02:58]} 6. O-O {[%clk 0:02:51]}  Be7 {[%clk 0:02:58]} 7. b3 {[%clk 0:02:43]}  O-O {[%clk 0:02:56]} 8. Bb2 {[%clk 0:02:43]}  d6 {[%clk 0:02:54]} 9. d4 {[%clk 0:02:43]}  cxd4 {[%clk 0:02:53]} 10. Qxd4 {[%clk 0:02:42]}  a6 {[%clk 0:02:50]} 11. Rfd1 {[%clk 0:02:41]}  Nbd7 {[%clk 0:02:49]} 12. Rac1 {[%clk 0:02:40]}  Qc7 {[%clk 0:02:47]} 13. Qd2 {[%clk 0:02:21]}  Rac8 {[%clk 0:02:45]} 14. Nd4 {[%clk 0:01:42]}  Bxg2 {[%clk 0:02:43]} 15. Kxg2 {[%clk 0:01:43]}  Qb7+ {[%clk 0:02:43]} 16. Kg1 {[%clk 0:01:42]}  Rfd8 {[%clk 0:02:41]} 17. Qe3 {[%clk 0:01:39]}  Ne5 {[%clk 0:02:34]} 18. h3 {[%clk 0:01:31]}  h6 {[%clk 0:02:23]} 19. Nf3 {[%clk 0:01:30]}  Ng6 {[%clk 0:02:18]} 20. a4 {[%clk 0:01:19]}  Rd7 {[%clk 0:02:10]} 21. Rd3 {[%clk 0:01:14]}  Bf8 {[%clk 0:01:53]} 22. Rcd1 {[%clk 0:01:12]}  Rcd8 {[%clk 0:01:50]} 23. Qc1 {[%clk 0:00:38]}  d5 {[%clk 0:01:47]} 24. cxd5 {[%clk 0:00:36]}  exd5 {[%clk 0:01:47]} 25. Nd4 {[%clk 0:00:30]}  Bc5 {[%clk 0:01:44]} 26. Ba3 {[%clk 0:00:27]}  Ne4 {[%clk 0:01:33]} 27. Kg2 {[%clk 0:00:15]}  Ne5 {[%clk 0:01:30]} 28. Re3 {[%clk 0:00:13]}  Bxd4 {[%clk 0:01:24]} 29. Rxd4 {[%clk 0:00:12]}  Nc6 {[%clk 0:01:20]} 30. Rd1 {[%clk 0:00:11]}  Nxc3 {[%clk 0:01:13]} 31. Rxc3 {[%clk 0:00:11]}  d4 {[%clk 0:01:13]} 32. Rxc6 {[%clk 0:00:10]}  Rc7 {[%clk 0:01:13]} 33. Qf4 {[%clk 0:00:07]}  Qxc6+ {[%clk 0:01:09]} 34. Kh2 {[%clk 0:00:07]}  Rcd7 {[%clk 0:01:08]} 35. Bb2 {[%clk 0:00:07]}  Qc2 {[%clk 0:01:00]} 36. Rd2 {[%clk 0:00:07]}  Qxb3 {[%clk 0:00:59]} 37. Bxd4 {[%clk 0:00:06]}  Qxa4 {[%clk 0:00:57]} 0-1


[Site "https://www.chess.com"]

[Event "Titled Tuesday Blitz April 4 Late 2023"]
[White "cryptoguru02"]
[Black "Hansen, Eric"]
[BlackFideId "2606771"]
[WhiteElo "2599"]
[BlackElo "2561"]
[Result "1/2-1/2"]
[Round "04"]
[TimeControl "180+2"]
[Date "2023.04.04"]
[WhiteClock "0:00:06"]
[BlackClock "0:00:02"]

1. d4 {[%clk 0:03:00]}  Nf6 {[%clk 0:02:59]} 2. c4 {[%clk 0:03:00]}  e6 {[%clk 0:03:00]} 3. Nc3 {[%clk 0:02:59]}  Bb4 {[%clk 0:03:01]} 4. Qc2 {[%clk 0:02:57]}  c6 {[%clk 0:02:56]} 5. a3 {[%clk 0:02:48]}  Ba5 {[%clk 0:02:56]} 6. b4 {[%clk 0:02:41]}  Bc7 {[%clk 0:02:56]} 7. e4 {[%clk 0:02:39]}  d5 {[%clk 0:02:56]} 8. e5 {[%clk 0:02:37]}  Nfd7 {[%clk 0:02:56]} 9. cxd5 {[%clk 0:02:33]}  exd5 {[%clk 0:02:51]} 10. f4 {[%clk 0:02:30]}  a5 {[%clk 0:02:52]} 11. Rb1 {[%clk 0:02:29]}  axb4 {[%clk 0:02:52]} 12. axb4 {[%clk 0:02:30]}  b5 {[%clk 0:02:46]} 13. Nf3 {[%clk 0:02:04]}  Nb6 {[%clk 0:02:45]} 14. Bd3 {[%clk 0:01:58]}  Bg4 {[%clk 0:02:39]} 15. O-O {[%clk 0:01:55]}  Nc4 {[%clk 0:02:39]} 16. Ne2 {[%clk 0:01:19]}  g6 {[%clk 0:02:32]} 17. f5 {[%clk 0:01:15]}  Bb6 {[%clk 0:02:14]} 18. Kh1 {[%clk 0:01:10]}  Nd7 {[%clk 0:02:08]} 19. Bg5 {[%clk 0:01:06]}  Qc7 {[%clk 0:02:02]} 20. fxg6 {[%clk 0:01:05]}  hxg6 {[%clk 0:02:00]} 21. Bxg6 {[%clk 0:01:05]}  Nf8 {[%clk 0:01:55]} 22. Bd3 {[%clk 0:00:44]}  Na3 {[%clk 0:01:54]} 23. Qa2 {[%clk 0:00:42]}  Ra4 {[%clk 0:01:50]} 24. Rbc1 {[%clk 0:00:39]}  Nc4 {[%clk 0:01:48]} 25. Qb1 {[%clk 0:00:37]}  Ra3 {[%clk 0:01:17]} 26. Bf5 {[%clk 0:00:35]}  Bxf3 {[%clk 0:00:31]} 27. Rxf3 {[%clk 0:00:35]}  Rxf3 {[%clk 0:00:30]} 28. gxf3 {[%clk 0:00:36]}  Rh5 {[%clk 0:00:22]} 29. f4 {[%clk 0:00:34]}  Ne6 {[%clk 0:00:13]} 30. Bg4 {[%clk 0:00:19]}  Nxg5 {[%clk 0:00:12]} 31. Bxh5 {[%clk 0:00:13]}  Ne4 {[%clk 0:00:13]} 32. Bf3 {[%clk 0:00:13]}  Ncd2 {[%clk 0:00:11]} 33. Bxe4 {[%clk 0:00:07]}  Nxb1 {[%clk 0:00:11]} 34. Bxb1 {[%clk 0:00:08]}  Qa7 {[%clk 0:00:08]} 35. Bf5 {[%clk 0:00:07]}  Qa2 {[%clk 0:00:07]} 36. Ng3 {[%clk 0:00:06]}  Bxd4 {[%clk 0:00:05]} 37. Rxc6 {[%clk 0:00:06]}  Be3 {[%clk 0:00:05]} 38. Rc8+ {[%clk 0:00:05]}  Ke7 {[%clk 0:00:05]} 39. Rc7+ {[%clk 0:00:05]}  Kf8 {[%clk 0:00:06]} 40. Rc8+ {[%clk 0:00:06]}  Ke7 {[%clk 0:00:01]} 41. Rc7+ {[%clk 0:00:06]}  Ke8 {[%clk 0:00:01]} 42. Rc8+ {[%clk 0:00:06]}  Ke7 {[%clk 0:00:02]} 1/2-1/2


[Site "https://www.chess.com"]

[Event "Titled Tuesday Blitz April 4 Late 2023"]
[White "Moroni, Luca Jr"]
[Black "Postnikov, Daniil"]
[WhiteFideId "865834"]
[BlackFideId "4166329"]
[WhiteElo "2569"]
[BlackElo "2261"]
[Result "0-1"]
[Round "04"]
[TimeControl "180+2"]
[Date "2023.04.04"]
[WhiteClock "0:00:03"]
[BlackClock "0:00:23"]

1. d4 {[%clk 0:03:00]}  f5 {[%clk 0:02:59]} 2. Nf3 {[%clk 0:02:58]}  Nf6 {[%clk 0:02:59]} 3. g3 {[%clk 0:02:56]}  g6 {[%clk 0:02:59]} 4. Bg2 {[%clk 0:02:56]}  Bg7 {[%clk 0:02:59]} 5. b3 {[%clk 0:02:56]}  O-O {[%clk 0:03:00]} 6. Bb2 {[%clk 0:02:57]}  d6 {[%clk 0:03:01]} 7. O-O {[%clk 0:02:57]}  Qe8 {[%clk 0:03:02]} 8. c4 {[%clk 0:02:56]}  Na6 {[%clk 0:03:01]} 9. Nbd2 {[%clk 0:02:55]}  Bd7 {[%clk 0:02:26]} 10. a3 {[%clk 0:02:52]}  c6 {[%clk 0:02:20]} 11. Qc2 {[%clk 0:02:48]}  h6 {[%clk 0:02:01]} 12. Rae1 {[%clk 0:02:43]}  Qf7 {[%clk 0:01:53]} 13. e4 {[%clk 0:02:38]}  fxe4 {[%clk 0:01:53]} 14. Nxe4 {[%clk 0:02:38]}  Bf5 {[%clk 0:01:50]} 15. Nh4 {[%clk 0:02:31]}  Nxe4 {[%clk 0:01:43]} 16. Bxe4 {[%clk 0:02:30]}  e6 {[%clk 0:01:41]} 17. Nxf5 {[%clk 0:02:10]}  exf5 {[%clk 0:01:40]} 18. Bg2 {[%clk 0:02:09]}  Rae8 {[%clk 0:01:28]} 19. b4 {[%clk 0:01:58]}  Nc7 {[%clk 0:01:26]} 20. a4 {[%clk 0:01:45]}  d5 {[%clk 0:01:23]} 21. b5 {[%clk 0:01:39]}  Rxe1 {[%clk 0:01:07]} 22. Rxe1 {[%clk 0:01:40]}  f4 {[%clk 0:01:07]} 23. bxc6 {[%clk 0:01:36]}  bxc6 {[%clk 0:01:05]} 24. cxd5 {[%clk 0:01:36]}  fxg3 {[%clk 0:01:02]} 25. hxg3 {[%clk 0:01:26]}  Nxd5 {[%clk 0:01:02]} 26. Re2 {[%clk 0:01:21]}  Qf6 {[%clk 0:00:42]} 27. Qe4 {[%clk 0:00:13]}  Kh7 {[%clk 0:00:41]} 28. Kh2 {[%clk 0:00:09]}  h5 {[%clk 0:00:37]} 29. Ba1 {[%clk 0:00:05]}  Rf7 {[%clk 0:00:32]} 30. Rc2 {[%clk 0:00:05]}  Re7 {[%clk 0:00:31]} 31. Qf3 {[%clk 0:00:04]}  Qg5 {[%clk 0:00:29]} 32. Rxc6 {[%clk 0:00:04]}  Nf6 {[%clk 0:00:28]} 33. Bh3 {[%clk 0:00:03]}  Re1 {[%clk 0:00:23]} 0-1


[Site "https://www.chess.com"]

[Event "Titled Tuesday Blitz April 4 Late 2023"]
[White "Kamsky, Gata"]
[Black "Kavutskiy, Konstantin"]
[WhiteFideId "2000024"]
[BlackFideId "2026384"]
[WhiteElo "2660"]
[BlackElo "2323"]
[Result "1-0"]
[Round "04"]
[TimeControl "180+2"]
[Date "2023.04.04"]
[WhiteClock "0:01:24"]
[BlackClock "0:00:24"]

1. e4 {[%clk 0:03:00]}  c5 {[%clk 0:02:59]} 2. Nc3 {[%clk 0:02:59]}  Nc6 {[%clk 0:02:58]} 3. Bc4 {[%clk 0:02:58]}  e6 {[%clk 0:02:56]} 4. a3 {[%clk 0:02:57]}  Nf6 {[%clk 0:02:55]} 5. Ba2 {[%clk 0:02:56]}  d5 {[%clk 0:02:50]} 6. d3 {[%clk 0:02:56]}  Be7 {[%clk 0:02:47]} 7. Nf3 {[%clk 0:02:55]}  O-O {[%clk 0:02:47]} 8. O-O {[%clk 0:02:55]}  b6 {[%clk 0:02:43]} 9. Re1 {[%clk 0:02:54]}  Re8 {[%clk 0:02:34]} 10. e5 {[%clk 0:02:53]}  Nd7 {[%clk 0:02:33]} 11. d4 {[%clk 0:02:53]}  cxd4 {[%clk 0:02:21]} 12. Nb5 {[%clk 0:02:52]}  Bb7 {[%clk 0:02:19]} 13. Nbxd4 {[%clk 0:02:51]}  Nc5 {[%clk 0:02:17]} 14. c3 {[%clk 0:02:50]}  Nxd4 {[%clk 0:02:14]} 15. Nxd4 {[%clk 0:02:49]}  a6 {[%clk 0:02:01]} 16. Bb1 {[%clk 0:02:45]}  Bg5 {[%clk 0:01:44]} 17. Qh5 {[%clk 0:02:41]}  h6 {[%clk 0:01:36]} 18. Bc2 {[%clk 0:02:23]}  Ne4 {[%clk 0:01:29]} 19. f3 {[%clk 0:02:14]}  Bxc1 {[%clk 0:01:16]} 20. Raxc1 {[%clk 0:02:12]}  Ng5 {[%clk 0:01:11]} 21. h4 {[%clk 0:02:10]}  Nh7 {[%clk 0:01:11]} 22. f4 {[%clk 0:02:09]}  Nf8 {[%clk 0:01:05]} 23. Re3 {[%clk 0:02:00]}  f5 {[%clk 0:00:54]} 24. g4 {[%clk 0:01:55]}  fxg4 {[%clk 0:00:47]} 25. Rg3 {[%clk 0:01:51]}  Qe7 {[%clk 0:00:42]} 26. Rxg4 {[%clk 0:01:50]}  Kh8 {[%clk 0:00:39]} 27. Kh2 {[%clk 0:01:50]}  Nh7 {[%clk 0:00:29]} 28. Rcg1 {[%clk 0:01:47]}  Rg8 {[%clk 0:00:28]} 29. Rg6 {[%clk 0:01:26]}  Nf8 {[%clk 0:00:28]} 30. Qxh6+ {[%clk 0:01:25]}  gxh6 {[%clk 0:00:24]} 31. Rxg8# {[%clk 0:01:24]} 1-0


[Site "https://www.chess.com"]